bitfinex-derivatives/quotes_ETHF0:USTF0_20210705
["timestamp","ask_amount","ask_price","bid_price","bid_amount"]
[1625457361852,0.05,2260.0,2259.9,2.20527]
[1625457363768,0.05,2260.0,2259.5,2.20527]
[1625457363868,2.20527,2259.6,2259.5,2.20527]
[1625457363970,3.20527,2259.6,2259.5,2.20527]
[1625457364418,2.20527,2259.6,2259.5,2.20527]
[1625457365524,3.20527,2259.6,2259.5,2.20527]
[1625457365774,2.20527,2259.6,2259.5,2.20527]
[1625457366025,0.05,2260.0,2259.5,2.20527]
[1625457366728,0.05,2260.0,2259.8,55.3265]
[1625457367832,2.25527,2260.0,2259.9,2.20527]
[1625457367935,3.25527,2260.0,2259.9,2.20527]
[1625457369839,5.46054,2260.0,2259.9,2.20527]
[1625457374145,3.25527,2260.0,2259.9,45.64897]
[1625457374347,3.25527,2260.0,2259.9,2.20527]
[1625457377348,2.25527,2260.0,2259.9,2.20527]
[1625457378702,3.25527,2260.0,2259.9,2.20527]
[1625457380218,3.25527,2260.0,2259.9,4.64647]
[1625457380318,2.25527,2260.0,2259.9,4.64647]
[1625457381927,0.05,2260.0,2259.9,4.64647]
[1625457382127,0.05,2260.0,2259.9,20.631664]
[1625457388791,1.30010347,2261.2,2259.9,20.631664]
[1625457388992,1.30010347,2261.2,2260.7,54.94]
[1625457389092,1.0,2261.3,2260.7,54.94]
[1625457389291,1.0,2261.3,2260.8,16.010802]
[1625457390049,2.20527,2261.2,2261.1,2.20527]
[1625457390345,2.20527,2261.2,2261.1,58.684428]
[1625457391348,2.20527,2261.2,2261.1,18.207328]
[1625457391900,3.20527,2261.2,2261.1,2.20527]
[1625457392000,5.41054,2261.2,2261.1,2.20527]
[1625457393251,5.41054,2261.2,2261.1,7e-05]
[1625457394160,5.41054,2261.2,2259.3,14.2295]
[1625457394256,6.29234,2261.2,2259.3,14.2295]
[1625457394858,6.29234,2261.2,2259.5,38.3702]
[1625457395064,6.29234,2261.2,2259.4,16.187399]
[1625457395164,6.29234,2261.2,2259.6,16.0857]
[1625457395470,6.29234,2261.2,2259.3,14.2295]
[1625457395773,6.29234,2261.2,2259.7,16.012328]
[1625457396022,2.20527,2259.9,2259.8,2.20527]
[1625457396122,3.20527,2259.9,2259.8,2.20527]
[1625457396222,5.46337,2259.9,2259.8,2.20527]
[1625457396972,4.46337,2259.9,2259.8,2.20527]
[1625457397673,5.46337,2259.9,2259.8,2.20527]
[1625457398023,7.66864,2259.9,2259.8,2.20527]
[1625457398124,6.66864,2259.9,2259.8,2.20527]
[1625457400038,2.2581,2259.9,2259.8,2.20527]
[1625457400138,3.20527,2260.6,2259.8,2.20527]
[1625457401691,3.20527,2260.6,2259.9,15.929444]
[1625457402041,3.20527,2260.6,2260.3,2.20527]
[1625457404001,2.20527,2260.6,2260.3,2.20527]
[1625457404100,2.20527,2260.4,2260.3,2.20527]
[1625457404552,2.20527,2260.4,2260.3,18.268955]
[1625457404753,2.20527,2260.6,2260.3,18.268955]
[1625457404854,2.20527,2260.6,2260.3,21.746955]
[1625457405625,2.20527,2260.6,2260.3,18.268955]
[1625457405721,2.20527,2260.6,2260.3,2.20527]
[1625457405806,3.20527,2260.6,2260.3,2.20527]
[1625457405906,48.9335,2260.4,2260.3,2.20527]
[1625457406006,52.6244,2260.4,2260.3,2.20527]
[1625457406159,54.82967,2260.4,2260.3,2.20527]
[1625457406263,5.89617,2260.4,2260.3,2.20527]
[1625457408819,3.20527,2260.4,2260.3,2.20527]
[1625457408910,2.20527,2260.4,2260.3,2.20527]
[1625457410264,2.20527,2260.4,2260.3,18.142458]
[1625457412267,2.20527,2260.6,2260.3,18.142458]
[1625457414085,2.20527,2260.6,2260.5,2.20527]
[1625457414483,2.20527,2260.6,2260.5,18.131553]
[1625457416693,1.0,2261.5,2260.5,18.131553]
[1625457416794,1.29953051,2261.9,2260.5,18.131553]
[1625457416893,2.29953051,2261.9,2260.5,18.131553]
[1625457417343,2.29953051,2261.9,2261.6,38.1418]
[1625457417445,1.0,2261.9,2261.6,40.9628]
[1625457418154,1.0,2261.9,2261.8,4.41054]
[1625457421309,1.0,2261.9,2261.6,58.2947]
[1625457421410,1.0,2261.9,2261.6,2.821]
[1625457421516,1.0,2261.9,2260.2,7.6322]
[1625457421966,1.0,2261.9,2261.3,54.8632]
[1625457422066,1.0,2261.9,2261.3,57.992]
[1625457422168,1.0,2261.9,2261.7,2.20527]
[1625457424530,48.187,2261.8,2261.7,2.20527]
[1625457424630,51.8089,2261.8,2261.7,2.20527]
[1625457424832,51.8089,2261.8,2259.9,14.1332]
[1625457425532,3.6219,2261.8,2260.2,16.183421]
[1625457426184,3.6219,2261.8,2261.5,2.20527]
[1625457427285,3.6219,2261.8,2261.2,2.20527]
[1625457428189,4.41054,2261.3,2261.2,2.20527]
[1625457428288,5.41054,2261.3,2261.2,2.20527]
[1625457428387,8.36774,2261.3,2261.2,2.20527]
[1625457430440,8.36774,2261.3,2259.9,14.1332]
[1625457431144,8.36774,2261.3,2260.0,16.102723]
[1625457431444,5.0,2261.2,2260.0,16.102723]
[1625457431543,1.0,2261.1,2259.1,1.29712632]
[1625457431644,1.0,2261.1,2259.0,3.4061]
[1625457431745,43.1207,2260.6,2259.0,3.4061]
[1625457431894,1.0,2260.5,2259.0,18.2239]
[1625457432296,2.20527,2260.1,2260.0,2.20527]
[1625457432445,3.20527,2260.1,2260.0,2.20527]
[1625457432851,2.20527,2260.1,2260.0,2.20527]
[1625457434247,4.41054,2260.1,2260.0,2.20527]
[1625457434751,1.30123374,2261.0,2260.0,2.20527]
[1625457434849,1.0,2260.9,2260.0,5.32087]
[1625457435051,1.0,2260.9,2260.0,21.378817]
[1625457436307,3.20527,2260.9,2260.8,2.20527]
[1625457436416,3.20527,2260.9,2260.8,4.77497]
[1625457438368,5.41054,2260.9,2260.8,4.77497]
[1625457438569,5.41054,2260.9,2260.8,2.5697]
[1625457438667,5.41054,2260.9,2260.0,3.1156]
[1625457439365,5.41054,2260.9,2260.1,16.085664]
[1625457440368,1.0,2260.8,2260.6,2.20527]
[1625457440767,2.20527,2260.9,2260.6,2.20527]
[1625457440868,2.20527,2260.9,2260.6,5.34727]
[1625457441467,3.20527,2260.9,2260.6,5.34727]
[1625457443121,2.20527,2260.9,2260.6,5.34727]
[1625457444370,2.20527,2260.9,2260.7,2.20527]
[1625457444621,3.20527,2260.9,2260.7,2.20527]
[1625457444820,2.20527,2260.9,2260.7,2.20527]
[1625457446422,2.20527,2260.9,2260.8,16.050787]
[1625457447729,2.20527,2261.2,2260.8,16.050787]
[1625457448376,2.20527,2261.2,2261.1,2.20527]
[1625457448580,2.20527,2261.2,2261.1,5.48747]
[1625457449481,2.20527,2261.2,2261.1,21.450693]
[1625457449789,2.20527,2261.2,2261.1,68.707593]
[1625457450882,2.20527,2261.6,2261.1,68.707593]
[1625457451898,1.30200577,2261.9,2261.1,68.707593]
[1625457452311,1.30130862,2262.4,2261.1,68.707593]
[1625457452410,3.50657862,2262.4,2262.3,2.20527]
[1625457452511,4.50657862,2262.4,2262.3,4.62637]
[1625457452863,3.20527,2262.4,2262.3,4.62637]
[1625457453765,2.20527,2262.4,2262.3,4.62637]
[1625457454063,2.30129824,2262.7,2262.3,4.62637]
[1625457454364,1.0,2262.7,2262.4,15.972061]
[1625457454463,1.0,2262.7,2262.6,2.20527]
[1625457458424,3.20527,2262.7,2262.6,2.20527]
[1625457460226,3.20527,2262.7,2261.9,47.2682]
[1625457460427,3.20527,2262.7,2262.2,2.20527]
[1625457461928,4.50486724,2262.7,2262.2,2.20527]
[1625457462080,4.50486724,2262.7,2262.0,2.20527]
[1625457462181,7.38276724,2262.7,2262.0,2.20527]
[1625457462280,1.29965394,2262.6,2262.0,2.20527]
[1625457462380,1.0,2262.5,2262.0,2.20527]
[1625457462480,2.20527,2262.2,2262.0,2.20527]
[1625457463285,1.0,2262.1,2262.0,2.20527]
[1625457463535,2.20527,2262.2,2262.0,2.20527]
[1625457464889,2.20527,2262.2,2262.1,15.956933]
[1625457466881,3.20527,2262.2,2262.1,15.956933]
[1625457466981,3.20527,2262.2,2262.0,2.20527]
[1625457467326,3.20527,2262.2,2261.8,2.20527]
[1625457468027,2.20527,2262.2,2261.8,2.20527]
[1625457468577,2.20527,2262.2,2262.1,2.20527]
[1625457469279,3.20527,2262.2,2262.1,2.20527]
[1625457469930,2.20527,2262.2,2262.1,2.20527]
[1625457470431,3.20527,2262.2,2262.1,2.20527]
[1625457470632,2.20527,2262.2,2262.1,2.20527]
[1625457470932,2.20527,2262.2,2262.1,4.99637]
[1625457471734,2.20527,2262.2,2262.1,21.067724]
[1625457472485,1.0,2262.6,2262.1,21.067724]
[1625457472585,1.0,2262.6,2262.5,2.20527]
[1625457473690,1.0,2262.6,2262.5,46.00127]
[1625457475193,1.0,2262.6,2262.5,2.20527]
[1625457485879,1.0,2262.6,2262.1,4.99637]
[1625457486580,1.0,2262.6,2262.2,16.074719]
[1625457486881,1.0,2262.6,2262.1,4.99637]
[1625457487480,1.0,2262.6,2262.2,16.133641]
[1625457488581,1.0,2262.6,2262.5,2.20527]
[1625457491287,2.20527,2262.7,2262.5,2.20527]
[1625457491836,3.20527,2262.7,2262.5,2.20527]
[1625457493238,14.2653,2263.2,2262.5,2.20527]
[1625457493344,1.29804708,2263.4,2262.5,5.43527]
[1625457493446,4.708e-05,2263.4,2262.5,5.43527]
[1625457493690,1.29759583,2263.7,2262.5,10.43527]
[1625457493791,1.29759583,2263.7,2263.3,43.587]
[1625457493989,1.29759583,2263.7,2263.4,1.0]
[1625457494092,1.29759583,2263.7,2263.4,16.975607]
[1625457494289,13.9161,2264.8,2263.4,16.975607]
[1625457494388,1.81608361,2265.0,2263.4,16.975607]
[1625457494691,16.82387,2265.0,2264.9,4.41054]
[1625457494791,16.82387,2265.0,2264.9,62.19914]
[1625457495044,1.814021,2265.3,2264.9,62.19914]
[1625457495443,1.814021,2265.3,2264.9,6.88394]
[1625457496146,2.687421,2265.3,2264.3,1.0]
[1625457496244,5.0,2265.2,2264.3,1.0]
[1625457496346,5.0,2265.2,2262.5,2.23]
[1625457496559,3.0674,2265.3,2262.5,2.23]
[1625457496757,2.20527,2264.6,2264.4,2.20527]
[1625457497259,2.20527,2264.6,2264.1,46.809]
[1625457497359,2.20527,2264.6,2264.1,44.1582]
[1625457497861,2.20527,2264.6,2264.1,45.1582]
[1625457497959,2.20527,2264.6,2264.1,1.0]
[1625457498763,2.20527,2264.2,2264.1,1.0]
[1625457499413,2.20527,2264.6,2264.1,1.0]
[1625457499513,2.20527,2264.6,2264.1,17.074156]
[1625457500765,2.20527,2264.6,2264.5,2.20527]
[1625457502769,2.20527,2264.6,2264.5,3.20527]
[1625457503474,2.20527,2264.6,2264.5,5.61457]
[1625457503573,2.20527,2264.6,2264.5,6.61457]
[1625457503771,2.20527,2264.6,2264.5,4.4093]
[1625457504123,2.20527,2264.6,2264.5,3.4093]
[1625457504575,2.20527,2264.6,2264.5,4.4093]
[1625457504774,2.20527,2264.6,2264.5,6.61457]
[1625457504876,2.20527,2264.6,2264.5,5.61457]
[1625457506877,2.20527,2264.6,2264.5,6.61457]
[1625457507132,2.20527,2264.6,2264.5,22.577683]
[1625457508837,2.20527,2264.6,2264.5,24.782953]
[1625457510492,15.1352,2265.2,2264.5,24.782953]
[1625457510791,2.20527,2265.2,2265.1,4.41054]
[1625457510895,2.20527,2265.2,2265.1,5.41054]
[1625457511093,2.20527,2265.2,2265.1,48.88374]
[1625457511700,2.20527,2265.2,2265.1,5.41054]
[1625457511800,2.20527,2265.2,2265.1,4.41054]
[1625457513200,2.20527,2265.2,2265.1,5.41054]
[1625457513551,2.20527,2265.2,2265.1,8.75994]
[1625457518672,2.20527,2265.2,2265.1,24.862695]
[1625457519876,14.8046,2266.2,2265.1,24.862695]
[1625457520881,2.20527,2265.8,2265.7,2.20527]
[1625457521379,2.20527,2265.8,2265.7,3.20527]
[1625457522034,2.20527,2265.8,2265.7,2.20527]
[1625457522885,4.41054,2265.8,2265.7,2.20527]
[1625457523886,4.41054,2265.8,2265.1,2.20527]
[1625457524290,4.41054,2265.8,2265.1,3.20527]
[1625457524886,2.20527,2265.8,2265.5,2.20527]
[1625457524995,2.20527,2265.8,2265.5,5.52587]
[1625457525092,2.20527,2265.8,2265.5,3.3206]
[1625457526444,2.20527,2265.8,2265.5,4.3206]
[1625457526900,2.20527,2265.6,2265.5,6.52587]
[1625457532176,2.20527,2265.6,2265.5,5.52587]
[1625457532473,2.20527,2265.6,2265.5,6.52587]
[1625457533479,2.20527,2265.6,2265.5,22.542283]
[1625457533575,2.20527,2265.8,2265.5,22.542283]
[1625457534227,15.165,2267.1,2265.5,22.542283]
[1625457534982,2.20527,2266.5,2266.4,2.20527]
[1625457535078,2.20527,2266.5,2266.4,5.62867]
[1625457535582,2.20527,2266.5,2266.4,3.4234]
[1625457537036,4.41054,2266.5,2266.4,3.4234]
[1625457540042,4.41054,2266.5,2266.1,2.20527]
[1625457540943,4.41054,2266.5,2266.1,3.20527]
[1625457541044,2.20527,2266.2,2266.1,3.20527]
[1625457541150,2.20527,2266.2,2265.7,1.0]
[1625457541248,5.64827,2266.2,2264.6,15.0173]
[1625457541554,5.64827,2266.2,2264.6,20.0173]
[1625457541906,5.64827,2266.2,2264.7,18.279738]
[1625457542205,5.64827,2266.2,2265.4,49.0408]
[1625457542306,5.64827,2266.2,2265.5,1.0]
[1625457542656,5.64827,2266.2,2265.6,16.071516]
[1625457543008,5.64827,2266.2,2266.0,2.20527]
[1625457543557,5.64827,2266.2,2265.3,1.0]
[1625457543661,5.64827,2266.2,2264.6,15.0173]
[1625457544112,10.64827,2266.2,2264.6,15.0173]
[1625457544322,10.64827,2266.2,2264.4,1.0]
[1625457544923,39.3691,2265.6,2264.4,1.0]
[1625457545027,4.41054,2264.5,2264.4,1.0]
[1625457545222,7.06254,2264.5,2264.2,2.20527]
[1625457545422,7.06254,2264.5,2264.0,2.20527]
[1625457545823,39.3796,2264.4,2264.0,2.20527]
[1625457546027,39.3796,2264.4,2263.4,14.8382]
[1625457546227,39.3796,2264.4,2261.5,13.9114]
[1625457546329,39.3796,2264.4,2262.2,1.0]
[1625457546879,39.3796,2264.4,2262.3,16.00087]
[1625457546980,39.3796,2264.4,2262.4,1.0]
[1625457547081,2.20527,2263.1,2263.0,2.20527]
[1625457547180,1.20527,2263.1,2263.0,2.20527]
[1625457548134,1.0,2263.2,2263.0,2.20527]
[1625457548334,0.8792,2266.3,2263.0,5.58667]
[1625457548436,1.0,2265.5,2263.0,5.58667]
[1625457548885,1.0,2265.5,2263.1,16.12321]
[1625457549091,2.20527,2263.5,2263.4,2.20527]
[1625457549187,3.20527,2263.5,2263.4,2.20527]
[1625457550536,3.20527,2263.5,2263.0,5.58667]
[1625457551039,5.41054,2263.5,2263.0,7.79194]
[1625457551137,5.41054,2263.5,2263.1,15.972188]
[1625457551789,5.41054,2263.5,2263.1,55.734188]
[1625457552388,5.41054,2263.5,2263.1,15.972188]
[1625457553189,3.20527,2263.5,2263.3,2.20527]
[1625457555194,5.41054,2263.5,2263.3,2.20527]
[1625457557400,3.20527,2263.5,2263.3,2.20527]
[1625457557602,2.20527,2263.5,2263.3,2.20527]
[1625457557702,3.20527,2263.5,2263.3,2.20527]
[1625457557804,13.6756,2264.9,2263.3,2.20527]
[1625457558103,13.6756,2264.9,2263.4,16.106399]
[1625457558405,4.759,2265.0,2264.3,54.9623]
[1625457558503,4.759,2265.0,2264.3,57.5178]
[1625457558704,1.0,2265.1,2264.3,57.5178]
[1625457559205,4.41054,2264.4,2264.3,59.72307]
[1625457559304,5.41054,2264.4,2264.3,59.72307]
[1625457559805,4.41054,2264.4,2264.3,59.72307]
[1625457560108,4.41054,2264.4,2264.3,20.696901]
[1625457560460,5.41054,2264.4,2264.3,20.696901]
[1625457560561,5.41054,2264.4,2264.3,18.141401]
[1625457560662,5.41054,2264.4,2264.3,2.20527]
[1625457561363,4.41054,2264.4,2264.3,2.20527]
[1625457562564,5.41054,2264.4,2264.3,2.20527]
[1625457566184,5.41054,2264.4,2264.3,4.73427]
[1625457566333,4.41054,2264.4,2264.3,4.73427]
[1625457566534,1.0,2265.0,2264.3,4.73427]
[1625457566784,7.4475618,2265.9,2264.3,4.73427]
[1625457566891,7.4475618,2265.9,2264.4,16.09048]
[1625457566892,5.637,2265.9,2264.4,16.09048]
[1625457567238,4.759,2265.9,2264.4,16.09048]
[1625457567337,2.20527,2265.2,2265.1,2.20527]
[1625457567437,3.20527,2265.2,2265.1,2.20527]
[1625457568187,1.0,2265.2,2265.1,2.20527]
[1625457569145,4.759,2265.9,2265.1,2.20527]
[1625457569244,1.0,2265.6,2265.1,5.26117]
[1625457569348,4.759,2265.9,2265.5,2.20527]
[1625457569349,2.20527,2265.7,2265.5,2.20527]
[1625457570651,5.6391,2266.4,2265.5,2.20527]
[1625457570753,0.8801,2266.4,2265.5,2.20527]
[1625457571302,2.20527,2266.1,2265.9,2.20527]
[1625457571405,1.0,2266.0,2265.9,2.20527]
[1625457573358,3.20527,2266.0,2265.9,2.20527]
[1625457573558,2.20527,2266.0,2265.9,2.20527]
[1625457573758,3.20527,2266.0,2265.9,2.20527]
[1625457573859,2.20527,2266.0,2265.9,2.20527]
[1625457574809,3.20527,2266.0,2265.9,2.20527]
[1625457575710,3.20527,2266.0,2264.6,52.55]
[1625457575813,3.20527,2266.0,2264.4,14.3369]
[1625457576310,3.20527,2266.0,2264.5,16.071086]
[1625457576710,3.20527,2266.0,2264.4,14.3369]
[1625457576910,8.20527,2266.0,2264.4,14.3369]
[1625457577112,8.20527,2266.0,2263.0,51.94378637]
[1625457577312,1.81329854,2265.9,2263.0,50.1589]
[1625457577411,2.20527,2264.4,2264.2,2.20527]
[1625457577512,5.07197,2264.4,2264.2,2.20527]
[1625457579167,5.07197,2264.4,2264.3,16.1184]
[1625457579466,7.27724,2264.4,2264.3,16.1184]
[1625457584641,7.27724,2264.4,2264.2,2.20527]
[1625457587243,1.0,2264.3,2264.2,2.20527]
[1625457587343,1.0,2264.3,2264.0,2.20527]
[1625457587542,2.20527,2264.1,2264.0,2.20527]
[1625457587642,3.20527,2264.1,2263.1,14.1634]
[1625457588044,3.20527,2264.1,2262.9,1.79848376]
[1625457588145,3.20527,2264.1,2262.8,1.79894319]
[1625457588349,3.20527,2264.1,2263.0,15.995748]
[1625457588649,3.20527,2264.1,2262.9,15.996355]
[1625457588850,3.20527,2264.1,2262.7,1.79973422]
[1625457588958,3.20527,2264.1,2262.6,1.80076204]
[1625457589070,3.20527,2264.1,2262.8,16.083887]
[1625457589281,5.0,2264.0,2262.8,16.083887]
[1625457589370,1.0,2263.9,2262.6,15.905355]
[1625457589463,3.709,2263.9,2262.6,15.905355]
[1625457589557,5.0,2263.8,2262.6,15.905355]
[1625457589656,7.26404,2262.7,2262.5,1.80137623]
[1625457589760,1.0,2262.6,2262.5,1.80137623]
[1625457589906,1.0,2262.6,2261.9,2.20527]
[1625457590005,7.26404,2262.7,2261.9,2.20527]
[1625457590106,1.0,2262.6,2261.9,2.20527]
[1625457590410,4.41054,2262.7,2261.9,2.20527]
[1625457590660,4.41054,2262.7,2262.0,15.943994]
[1625457591461,2.20527,2262.7,2262.5,2.20527]
[1625457591563,2.20527,2262.7,2262.5,5.09167]
[1625457591767,2.20527,2262.7,2262.6,15.963228]
[1625457592719,1.0,2263.3,2262.6,15.963228]
[1625457592821,14.1482,2263.8,2262.6,15.963228]
[1625457593279,1.81812228,2264.4,2262.6,15.963228]
[1625457593470,2.20527,2263.1,2263.0,2.20527]
[1625457593572,2.20527,2263.1,2263.0,4.39197]
[1625457593772,1.0,2264.3,2263.0,4.39197]
[1625457594221,1.0,2264.3,2263.1,15.961397]
[1625457595474,2.20527,2263.4,2263.3,2.20527]
[1625457595873,2.20527,2263.4,2263.3,18.367348]
[1625457597023,3.20527,2263.4,2263.3,18.367348]
[1625457597127,3.20527,2263.4,2263.3,2.20527]
[1625457597528,5.41054,2263.4,2263.3,2.20527]
[1625457598227,5.41054,2263.4,2262.1,1.80125571]
[1625457598890,5.41054,2263.4,2262.2,15.910132]
[1625457599391,5.41054,2263.4,2262.0,16.074575]
[1625457599590,2.20527,2262.7,2262.5,2.20527]
[1625457599893,3.20527,2262.7,2262.6,16.072878]
[1625457600393,2.20527,2262.7,2262.6,16.072878]
[1625457602047,3.20527,2262.7,2262.6,16.072878]
[1625457602197,2.20527,2262.7,2262.6,16.072878]
[1625457602550,3.20527,2262.7,2262.6,16.072878]
[1625457602752,3.20527,2262.7,2261.8,13.7317]
[1625457602851,5.69297,2262.7,2261.8,13.7317]
[1625457603208,5.69297,2262.7,2261.4,1.80069833]
[1625457603409,5.69297,2262.7,2261.3,2.57242618]
[1625457603410,5.69297,2262.7,2261.3,1.80052425]
[1625457603612,4.51257,2261.5,2261.4,2.20527]
[1625457603711,5.51257,2261.5,2261.4,2.20527]
[1625457603814,5.51257,2261.5,2261.4,18.221777]
[1625457604112,5.51257,2261.5,2261.4,2.20527]
[1625457605620,7.71784,2261.5,2261.4,2.20527]
[1625457606222,7.71784,2261.5,2260.9,2.20527]
[1625457606322,7.71784,2261.5,2260.0,1.80013716]
[1625457606420,12.71784,2261.5,2260.0,1.80013716]
[1625457606720,12.71784,2261.5,2259.0,6.4290613]
[1625457606721,12.71784,2261.5,2259.8,1.80123796]
[1625457607323,12.71784,2261.5,2259.9,15.973838]
[1625457607576,4.41054,2260.0,2259.9,15.973838]
[1625457607674,5.41054,2260.0,2259.7,2.20527]
[1625457607775,5.8881,2261.9,2259.7,2.20527]
[1625457607876,0.8881,2261.9,2259.7,5.67467]
[1625457607978,30.08314507,2262.5,2259.7,5.67467]
[1625457608077,28.268,2262.5,2259.7,5.67467]
[1625457608278,28.268,2262.5,2259.8,16.085689]
[1625457608982,1.0,2262.4,2259.8,16.085689]
[1625457609331,3.7193,2262.4,2259.8,16.085689]
[1625457609431,5.0,2262.3,2259.8,16.085689]
[1625457609531,1.0,2262.2,2259.8,16.085689]
[1625457609633,2.20527,2260.5,2260.4,2.20527]
[1625457609735,2.20527,2260.5,2260.4,5.66047]
[1625457610030,2.20527,2260.5,2260.4,21.753354]
[1625457610330,1.0,2262.2,2260.4,21.753354]
[1625457611490,1.8851,2262.2,2260.4,21.753354]
[1625457611591,1.8851,2262.2,2261.3,2.20527]
[1625457611592,2.20527,2261.7,2261.3,2.20527]
[1625457611693,1.0,2261.9,2261.3,5.19787]
[1625457611991,1.0,2261.9,2261.4,16.013786]
[1625457612093,2.20527,2262.0,2261.4,16.013786]
[1625457612292,3.20527,2262.0,2261.4,16.013786]
[1625457613595,2.20527,2261.5,2261.4,16.013786]
[1625457613695,6.70687,2261.5,2261.3,2.20527]
[1625457614000,5.70687,2261.5,2261.3,2.20527]
[1625457614747,14.6147,2263.6,2261.4,16.001536]
[1625457615099,15.6147,2263.6,2261.4,16.001536]
[1625457615598,2.20527,2262.3,2262.2,2.20527]
[1625457615697,3.20527,2262.3,2262.2,2.20527]
[1625457617204,2.20527,2262.3,2262.2,2.20527]
[1625457617508,1.8084266,2264.2,2262.2,2.20527]
[1625457617617,2.20527,2262.9,2262.8,2.20527]
[1625457617713,2.20527,2262.9,2262.8,3.5106]
[1625457618421,3.20527,2262.9,2262.8,3.5106]
[1625457618621,2.20527,2262.9,2262.8,3.5106]
[1625457619172,2.20527,2262.9,2262.8,19.480943]
[1625457619470,1.0,2263.9,2262.8,19.480943]
[1625457619573,14.4762,2264.3,2262.8,19.480943]
[1625457619671,14.4762,2264.3,2264.2,4.41054]
[1625457619771,2.20527,2264.4,2264.2,7.67234]
[1625457620430,1.0,2264.3,2264.2,7.67234]
[1625457621633,1.0,2264.3,2264.2,5.46707]
[1625457621731,1.0,2264.3,2264.2,3.2618]
[1625457621835,1.0,2264.3,2263.8,2.20527]
[1625457621836,1.0,2264.3,2262.6,0.05]
[1625457621932,4.0724,2264.3,2262.6,0.05]
[1625457622540,4.0724,2264.3,2262.7,16.04575]
[1625457623039,4.0724,2264.3,2261.1,14.8502]
[1625457623335,5.0,2264.2,2261.1,14.8502]
[1625457623435,1.0,2264.1,2261.1,14.8502]
[1625457623635,2.20527,2262.4,2262.3,2.20527]
[1625457624037,2.20527,2262.4,2262.3,18.379081]
[1625457625699,4.41054,2262.4,2262.3,18.379081]
[1625457626255,5.41054,2262.4,2262.3,18.379081]
[1625457626555,7.85764,2262.4,2262.3,18.379081]
[1625457626756,7.85764,2262.4,2262.3,2.20527]
[1625457628308,6.85764,2262.4,2262.3,2.20527]
[1625457628760,6.85764,2262.4,2262.3,18.304269]
[1625457628861,4.41054,2262.4,2262.3,18.304269]
[1625457629314,3.5522,2263.2,2262.3,18.304269]
[1625457629423,1.0,2262.9,2262.3,18.304269]
[1625457629515,2.58462055,2264.5,2262.3,18.304269]
[1625457629716,2.20527,2263.3,2263.2,2.20527]
[1625457630564,3.20527,2263.3,2263.2,2.20527]
[1625457631665,5.41054,2263.3,2263.2,2.20527]
[1625457634631,3.20527,2263.3,2263.2,2.20527]
[1625457640165,3.20527,2263.3,2263.2,18.193969]
[1625457640819,1.0,2264.4,2263.2,21.244669]
[1625457641772,2.20527,2264.3,2264.2,4.94717]
[1625457642073,2.20527,2264.3,2264.2,20.915812]
[1625457642223,3.20527,2264.3,2264.2,20.915812]
[1625457643030,2.20527,2264.3,2264.2,20.915812]
[1625457643533,4.759,2265.2,2264.2,20.915812]
[1625457643733,2.20527,2264.9,2264.8,2.20527]
[1625457643933,2.20527,2264.9,2264.8,5.43817]
[1625457644032,4.759,2265.8,2264.8,5.43817]
[1625457644232,1.0,2265.7,2264.8,5.43817]
[1625457644836,1.0,2265.7,2264.9,16.142562]
[1625457645735,1.0,2265.7,2265.6,2.20527]
[1625457645837,2.20527,2265.8,2265.6,2.20527]
[1625457645937,2.20527,2265.8,2265.6,5.74917]
[1625457646136,2.20527,2265.8,2265.6,21.675719]
[1625457646955,1.0,2266.2,2265.6,21.675719]
[1625457647046,6.56756227,2266.8,2265.6,21.675719]
[1625457647703,4.759,2266.8,2265.6,21.675719]
[1625457647802,2.20527,2266.4,2266.3,2.20527]
[1625457648007,3.20527,2266.4,2266.3,5.04387]
[1625457648508,3.20527,2266.4,2266.3,2.8386]
[1625457649008,6.37997,2266.4,2264.7,0.05]
[1625457649210,2.20527,2266.4,2264.7,0.05]
[1625457649408,2.20527,2266.4,2264.7,0.8848]
[1625457649508,2.20527,2266.4,2264.7,4.4398]
[1625457649618,2.20527,2266.4,2264.8,20.988782]
[1625457649720,1.0,2266.3,2265.4,0.05]
[1625457649819,1.0,2266.3,2266.2,2.20527]
[1625457649920,1.0,2266.3,2266.2,4.88647]
[1625457650121,2.20527,2266.4,2266.2,4.88647]
[1625457650617,2.20527,2266.4,2266.3,16.127134]
[1625457651322,3.20527,2266.4,2266.3,16.127134]
[1625457651423,2.20527,2266.4,2266.3,16.127134]
[1625457655140,3.20527,2266.4,2266.3,16.127134]
[1625457655388,6.56517,2266.4,2266.2,4.41054]
[1625457655588,5.56517,2266.4,2266.2,4.41054]
[1625457656490,5.56517,2266.4,2266.3,16.038472]
[1625457657443,2.20527,2266.4,2266.3,16.038472]
[1625457658193,37.0,2267.1,2266.3,18.528272]
[1625457658293,36.0,2267.1,2266.3,18.528272]
[1625457658892,37.0,2267.1,2266.3,18.528272]
[1625457659793,37.0,2267.1,2267.0,2.20527]
[1625457659895,37.0,2267.1,2267.0,4.41054]
[1625457660195,36.0,2267.1,2267.0,4.41054]
[1625457660298,37.0,2267.1,2267.0,4.41054]
[1625457664879,36.0,2267.1,2267.0,4.41054]
[1625457665078,37.0,2267.1,2267.0,4.41054]